bitfinex/quotes_SOLUSD_20241022
["timestamp","ask_amount","ask_price","bid_price","bid_amount"]
[1729590827419,20.0,164.15,164.0,15.5313]
[1729590827625,20.0,164.12,164.0,15.5313]
[1729590827956,6.0945,164.09,164.0,15.5313]
[1729590828531,6.0945,164.08,164.0,15.5313]
[1729590829234,30.0,164.07,164.01,23.776884]
[1729590836733,22.6457,164.08,164.01,23.776884]
[1729590839836,30.0,164.06,164.01,23.776884]
[1729590840816,30.0,164.06,164.04,14.28728195]
[1729590841018,22.5278,164.12,164.05,23.776884]
[1729590842028,16.4344,164.12,164.05,23.776884]
[1729590842652,22.5275,164.12,164.05,23.776884]
[1729590842966,12.45905723,164.15,164.05,23.776884]
[1729590843645,12.45905723,164.15,164.07,23.776884]
[1729590844230,12.45905723,164.15,164.08,14.28728195]
[1729590844231,6.36705723,164.15,164.08,14.28728195]
[1729590844446,6.36705723,164.15,164.09,23.776884]
[1729590844632,6.0913,164.17,164.09,23.776884]
[1729590844943,6.36533,164.18,164.11,23.776884]
[1729590845133,6.0905,164.19,164.11,23.776884]
[1729590847670,15.4105,164.2,164.12,14.28728195]
[1729590847844,6.36437675,164.22,164.1,6.0166]
[1729590847845,12.45407675,164.22,164.15,23.776884]
[1729590848040,6.0897,164.22,164.15,23.776884]
[1729590849548,15.1706,164.24,164.15,23.776884]
[1729590849760,15.1706,164.24,164.17,23.776884]
[1729590851059,26.1282,164.23,164.09,5.59303485]
[1729590851260,6.0935,164.11,164.01,22.1832]
[1729590851564,20.2,164.15,164.02,1.52559651]
[1729590851870,6.0945,164.08,164.02,1.52559651]
[1729590852049,6.0945,164.08,163.97,36.04578195]
[1729590852254,6.0945,164.08,163.99,14.28728195]
[1729590852761,6.0945,164.08,164.0,23.776884]
[1729590853242,20.0,164.11,164.0,23.776884]
[1729590853450,20.0,164.09,164.0,23.776884]
[1729590853870,6.0937,164.11,164.0,23.776884]
[1729590854173,6.0938,164.1,164.0,23.776884]
[1729590855582,6.0938,164.1,164.01,14.28728195]
[1729590855874,15.9266,164.12,164.03,14.28728195]
[1729590856181,6.0931,164.12,164.04,23.776884]
[1729590856361,15.1887,164.16,164.04,23.776884]
[1729590857254,20.0,164.15,164.04,23.776884]
[1729590857467,6.0934,164.12,164.04,23.776884]
[1729590861179,12.4594088,164.13,164.04,23.776884]
[1729590861478,6.0923,164.14,164.06,23.776884]
[1729590864176,6.0923,164.14,164.08,23.776884]
[1729590864372,6.0923,164.14,164.06,23.776884]
[1729590864579,6.0923,164.14,164.08,23.776884]
[1729590864780,6.0923,164.14,164.06,23.776884]
[1729590864955,6.0923,164.14,164.08,23.776884]
[1729590865158,6.0923,164.14,164.06,23.776884]
[1729590865356,6.0923,164.14,164.08,23.776884]
[1729590865572,6.0923,164.14,164.06,23.776884]
[1729590865877,6.0923,164.14,164.05,35.67728195]
[1729590865878,6.0923,164.14,164.08,23.776884]
[1729590872579,6.092,164.15,164.08,23.776884]
[1729590879578,6.0923,164.14,164.08,23.776884]
[1729590889868,6.36559079,164.16,164.09,9.13779428]
[1729590890072,12.45739079,164.16,164.1,23.776884]
[1729590890274,6.0918,164.16,164.1,23.776884]
[1729590890573,6.0915,164.17,164.1,23.776884]
[1729590890776,12.45584521,164.18,164.12,23.776884]
[1729590890974,6.0905,164.19,164.14,23.776884]
[1729590891203,30.3883,164.24,164.16,23.776884]
[1729590891368,6.0897,164.22,164.16,23.776884]
[1729590891568,6.0898,164.21,164.16,23.776884]
[1729590894490,6.0908,164.19,164.14,23.776884]
[1729590894682,6.0908,164.18,164.13,23.776884]
[1729590895087,20.0,164.21,164.09,6.5411]
[1729590895397,6.0922,164.15,164.09,6.5411]
[1729590895598,6.0929,164.13,164.08,15.5917]
[1729590897181,6.0923,164.14,164.08,15.5917]
[1729590897383,6.0923,164.14,164.09,23.776884]
[1729590900887,6.0916,164.16,164.09,23.776884]
[1729590901577,15.2053,164.17,164.09,23.776884]
[1729590901578,6.092,164.15,164.09,23.776884]
[1729590902710,6.0918,164.16,164.09,23.776884]
[1729590902883,6.0916,164.16,164.09,23.776884]
[1729590903087,6.0919,164.15,164.09,23.776884]
[1729590907893,6.36275333,164.17,164.09,23.776884]
[1729590908711,6.0919,164.16,164.09,23.776884]
[1729590909016,12.45395333,164.17,164.11,23.776884]
[1729590909190,6.0912,164.17,164.11,23.776884]
[1729590912110,20.0,164.19,164.08,15.5917]
[1729590912293,20.0,164.19,164.09,1.52564534]
[1729590912493,6.0926,164.14,164.08,15.5917]
[1729590912702,6.0927,164.13,164.09,1.52565558]
[1729590912902,6.0927,164.13,164.08,15.5917]
[1729590913193,6.0927,164.13,164.09,1.52565791]
[1729590913407,6.0935,164.11,164.05,6.314]
[1729590913597,30.0,164.1,164.05,6.314]
[1729590913913,6.0949,164.07,164.06,1.52570851]
[1729590914119,6.0949,164.08,164.01,6.5283]
[1729590914289,6.0949,164.08,164.02,1.52612965]
[1729590914496,20.0,164.09,164.01,6.5283]
[1729590914497,6.0949,164.07,164.03,1.52612965]
[1729590914703,6.0949,164.07,164.04,1.52612965]
[1729590914889,6.0949,164.07,164.01,6.5283]
[1729590915206,6.0949,164.07,164.02,1.52621549]
[1729590915403,6.0949,164.07,164.03,1.52621549]
[1729590915721,6.0949,164.07,164.01,6.5283]
[1729590916020,6.0949,164.07,164.02,1.52620071]
[1729590916215,6.0949,164.07,164.03,1.52620071]
[1729590916420,6.0949,164.07,164.02,23.776884]
[1729590916595,6.0949,164.07,164.03,1.52618793]
[1729590916795,6.0949,164.07,164.02,23.776884]
[1729590917201,6.0949,164.07,164.03,1.52618773]
[1729590917411,6.0949,164.07,164.02,23.776884]
[1729590917712,30.0,164.06,164.04,23.776884]
[1729590918100,30.0,164.06,164.03,23.776884]
[1729590922126,6.36562185,164.11,164.03,23.776884]
[1729590922494,6.0941,164.1,164.03,23.776884]
[1729590923427,6.0942,164.09,164.03,23.776884]
[1729590924224,6.36562185,164.11,164.08,23.776884]
[1729590924434,30.0,164.09,164.08,23.776884]
[1729590924717,6.3521,164.17,164.02,23.776884]
[1729590924718,6.0936,164.11,164.02,23.776884]
[1729590924915,6.0936,164.11,164.05,23.776884]
[1729590926928,6.0936,164.11,164.06,9.13779428]
[1729590927110,6.0931,164.12,164.06,9.13779428]
[1729590927856,21.59310814,164.16,164.08,9.13779428]
[1729590927857,6.0922,164.15,164.08,9.13779428]
[1729590928008,6.0924,164.14,164.08,9.13779428]
[1729590931935,6.0933,164.12,164.06,15.1621]
[1729590935131,6.0933,164.12,164.06,23.776884]
[1729590936140,6.36450645,164.13,164.05,9.13779428]
[1729590936321,6.0937,164.11,164.05,9.13779428]
[1729590937528,6.36450645,164.13,164.05,9.13779428]
[1729590937726,6.0948,164.08,164.05,9.13779428]
[1729590938036,6.0942,164.09,164.05,9.13779428]
[1729590938417,6.0942,164.09,164.02,16.0153]
[1729590938732,6.0942,164.09,164.05,23.776884]
[1729590940732,6.36450645,164.13,164.06,15.28779428]
[1729590941037,1.05853522,164.22,164.12,32.91467828]
[1729590941239,30.0,164.13,164.12,32.91467828]
[1729590942241,6.0912,164.17,164.12,32.91467828]
[1729590946335,6.36530519,164.21,164.14,9.13779428]
[1729590946639,12.45510519,164.21,164.16,9.13779428]
[1729590946941,30.0,164.17,164.14,9.13779428]
[1729590947137,6.0902,164.2,164.15,23.776884]
[1729590948217,6.0906,164.19,164.14,23.776884]
[1729590948537,6.0906,164.19,164.14,32.91467828]
[1729590949126,6.36530519,164.21,164.09,21.432]
[1729590949337,6.0911,164.18,164.13,23.776884]
[1729590950035,30.0,164.16,164.15,23.776884]
[1729590950233,30.0,164.16,164.15,32.91467828]
[1729590951846,6.36530519,164.21,164.15,32.91467828]
[1729590952153,6.36530519,164.21,164.17,9.13779428]
[1729590953821,6.36530519,164.21,164.19,9.13779428]
[1729590954024,6.0858,164.32,164.2,23.776884]
[1729590954243,16.657,164.33,164.26,9.13779428]
[1729590954844,30.0,164.27,164.26,23.776884]
[1729590955055,30.0,164.27,164.26,32.91467828]
[1729590955225,16.657,164.33,164.26,32.91467828]
[1729590956330,16.657,164.33,164.26,23.776884]
[1729590957336,22.7423,164.33,164.26,23.776884]
[1729590957669,6.0861,164.31,164.21,14.24726664]
[1729590957831,6.086,164.31,164.22,23.776884]
[1729590958032,6.086,164.31,164.19,14.24726664]
[1729590958557,30.0,164.26,164.19,14.24726664]
[1729590959556,30.0,164.26,164.14,21.9298]
[1729590959759,20.0,164.25,164.14,21.9298]
[1729590959965,6.0894,164.22,164.14,21.9298]
[1729590960136,36.089,164.24,164.14,21.9298]
[1729590960448,30.0,164.24,164.17,14.24726664]
[1729590960663,30.0,164.24,164.19,14.24726664]
[1729590960832,6.086,164.32,164.23,14.24726664]
[1729590961029,6.086,164.32,164.24,23.776884]
[1729590962355,20.0,164.31,164.24,23.776884]
[1729590962651,16.143,164.34,164.24,23.776884]
[1729590963035,16.143,164.34,164.25,14.24726664]
[1729590963238,30.0,164.26,164.25,38.02415064]
[1729590963436,22.228,164.34,164.26,23.776884]
[1729590964259,20.0,164.33,164.26,23.776884]
[1729590968960,6.35877264,164.35,164.28,23.776884]
[1729590969255,6.0834,164.38,164.3,23.776884]
[1729590970588,30.0,164.31,164.3,23.776884]
[1729590970950,16.4665,164.39,164.3,23.776884]
[1729590971241,6.0837,164.38,164.3,23.776884]
[1729590972557,6.0845,164.36,164.22,22.33656341]
[1729590972750,6.0845,164.36,164.25,14.24726664]
[1729590973543,20.0,164.37,164.25,14.24726664]
[1729590973544,6.0845,164.35,164.25,14.24726664]
[1729590973855,20.0,164.38,164.25,14.24726664]
[1729590974047,6.0842,164.36,164.25,14.24726664]
[1729590974845,6.0842,164.36,164.26,23.776884]
[1729590975038,20.0,164.38,164.28,23.776884]
[1729590975244,26.0837,164.38,164.3,23.776884]
[1729590975464,20.0,164.38,164.3,23.776884]
[1729590977561,6.0842,164.36,164.27,14.24726664]
[1729590977742,6.0842,164.36,164.25,14.24726664]
[1729590978460,6.0839,164.37,164.27,14.24726664]
[1729590978660,20.0,164.38,164.29,30.37576664]
[1729590978844,20.0,164.38,164.3,23.776884]
[1729590979942,16.4665,164.39,164.3,23.776884]
[1729590980144,22.5496,164.39,164.3,23.776884]
[1729590980458,20.0,164.4,164.31,14.24726664]
[1729590980633,6.0821,164.42,164.32,23.776884]
[1729590980833,20.0,164.41,164.32,23.776884]
[1729590981450,6.0821,164.42,164.32,23.776884]
[1729590982356,6.2094,164.43,164.32,23.776884]
[1729590982769,20.0,164.42,164.32,23.776884]
[1729590983165,26.082,164.42,164.32,23.776884]
[1729590983766,6.0825,164.41,164.32,23.776884]
[1729590984260,6.0834,164.39,164.32,23.776884]
[1729590984478,6.0827,164.4,164.32,23.776884]
[1729590985882,6.0823,164.41,164.32,23.776884]
[1729590986887,6.0829,164.4,164.32,23.776884]
[1729590987256,6.35371669,164.44,164.34,42.7504]
[1729590987458,54.5,164.59,164.34,42.7504]
[1729590987459,1.05661422,164.52,164.51,45.320884]
[1729590987770,14.04157523,164.68,164.42,0.08126341]
[1729590987771,0.1,164.63,164.47,14.24726664]
[1729590987968,0.2,164.63,164.48,23.776884]
[1729590988367,21.69137747,164.68,164.47,14.24726664]
[1729590988368,6.0761,164.58,164.47,23.776884]
[1729590989761,20.0,164.57,164.47,23.776884]
[1729590989961,6.0761,164.58,164.47,23.776884]
[1729590990867,6.0769,164.56,164.45,23.776884]
[1729590991074,6.0763,164.58,164.45,23.776884]
[1729590991273,20.0,164.57,164.45,23.776884]
[1729590991567,26.0765,164.57,164.45,23.776884]
[1729590992371,6.0771,164.56,164.45,23.776884]
[1729590992791,20.0,164.53,164.45,23.776884]
[1729590993878,20.0,164.55,164.45,23.776884]
[1729590995187,20.0,164.52,164.42,14.24726664]
[1729590995500,20.0,164.52,164.4,14.24726664]
[1729590995501,6.0788,164.51,164.4,14.24726664]
[1729590995689,20.0,164.52,164.42,14.24726664]
[1729590996197,20.0,164.53,164.42,14.24726664]
[1729590996371,20.0,164.55,164.46,14.24726664]
[1729590997002,26.0773,164.55,164.46,14.24726664]
[1729590998498,26.0773,164.55,164.44,14.24726664]
[1729590998670,26.0773,164.55,164.45,23.776884]
[1729591000199,0.6113831,164.62,164.54,23.776884]
[1729591000398,0.6113831,164.62,164.58,23.776884]
[1729591003501,0.6113831,164.62,164.59,14.24726664]
[1729591003698,0.6113831,164.62,164.6,23.776884]
[1729591017710,6.6465,164.73,164.62,23.776884]
[1729591017890,6.6465,164.73,164.64,14.24726664]
[1729591018091,6.6465,164.73,164.65,23.776884]
[1729591018589,6.0695,164.76,164.69,23.776884]
[1729591018784,0.6113831,164.78,164.67,23.776884]
[1729591018998,6.0696,164.76,164.67,23.776884]
[1729591019707,6.069,164.77,164.67,23.776884]
[1729591019999,0.6113831,164.78,164.72,23.776884]
[1729591025885,6.6803831,164.78,164.72,23.776884]
[1729591026398,0.6113831,164.78,164.72,23.776884]
[1729591028106,0.6113831,164.78,164.71,23.776884]
[1729591029797,0.6113831,164.78,164.74,14.24726664]
[1729591030111,0.6113831,164.78,164.73,23.776884]
[1729591033494,0.6113831,164.78,164.75,23.776884]
[1729591033813,0.6113831,164.78,164.77,23.776884]
[1729591035294,20.0,164.83,164.77,23.776884]
[1729591035295,16.1113831,164.83,164.77,23.776884]
[1729591035915,6.0672,164.82,164.74,14.24726664]
[1729591036091,6.0672,164.82,164.75,23.776884]
[1729591037519,15.2877,164.84,164.77,23.776884]
[1729591037695,6.067,164.83,164.77,23.776884]
[1729591037890,6.5652,164.87,164.77,23.776884]
[1729591038197,20.0,164.84,164.77,23.776884]
[1729591038705,26.0666,164.84,164.77,23.776884]
[1729591038910,6.0672,164.83,164.77,23.776884]
[1729591039097,6.0674,164.82,164.72,6.442]
[1729591039291,20.0,164.84,164.73,38.02415064]
[1729591039516,6.0668,164.83,164.73,38.02415064]
[1729591040200,6.0671,164.83,164.73,38.02415064]
[1729591040516,6.0672,164.82,164.73,38.02415064]
[1729591040713,20.0,164.85,164.73,38.02415064]
[1729591041014,6.0664,164.84,164.75,14.24726664]
[1729591041219,20.0,164.83,164.76,23.776884]
[1729591041606,6.0664,164.84,164.76,23.776884]
[1729591042421,6.0669,164.83,164.76,23.776884]
[1729591042721,6.0675,164.82,164.76,23.776884]
[1729591044533,6.0668,164.84,164.76,23.776884]
[1729591044731,6.0671,164.83,164.76,23.776884]
[1729591044913,6.0672,164.82,164.76,23.776884]
[1729591045108,20.0,164.86,164.76,23.776884]
[1729591045331,6.5652,164.87,164.76,23.776884]
[1729591045832,6.0675,164.82,164.76,23.776884]
[1729591046529,6.0675,164.82,164.75,23.776884]
[1729591047603,6.0665,164.84,164.76,14.24726664]
[1729591047838,6.0665,164.84,164.77,23.776884]
[1729591048407,6.5652,164.87,164.77,23.776884]
[1729591048622,6.0661,164.85,164.77,23.776884]
[1729591049024,20.0,164.86,164.78,14.24726664]
[1729591049237,20.0,164.86,164.79,23.776884]
[1729591049736,20.0,164.87,164.79,23.776884]
[1729591050238,6.065,164.88,164.79,23.776884]
[1729591050438,6.065,164.88,164.8,14.24726664]
[1729591050636,6.065,164.88,164.81,23.776884]
[1729591050811,6.0646,164.89,164.81,23.776884]
[1729591051740,20.0,164.9,164.81,23.776884]
[1729591051942,1.05517984,165.01,164.9,20.0]
[1729591052140,1.05517984,165.01,164.87,6.3891]
[1729591052141,1.05517984,165.01,164.87,6.2891]
[1729591052442,6.0612,164.99,164.88,14.24726664]
[1729591053010,6.0603,165.01,164.88,14.24726664]
[1729591053207,6.0607,165.0,164.88,14.24726664]
[1729591054138,6.0611,164.99,164.89,23.776884]
[1729591054939,20.0,164.98,164.89,23.776884]
[1729591055337,6.0602,165.01,164.9,14.24726664]
[1729591055638,20.0,165.0,164.91,23.776884]
[1729591056434,26.0606,165.0,164.91,23.776884]
[1729591056742,20.1,165.02,164.89,23.776884]
[1729591056953,23.776884,164.99,164.84,30.56926664]
[1729591057136,43.776884,164.98,164.84,14.24726664]
[1729591057332,20.0,164.94,164.83,6.6664]
[1729591057554,6.062,164.96,164.83,6.6664]
[1729591057849,0.1,164.97,164.83,6.6664]
[1729591058625,6.0632,164.93,164.84,20.0]
[1729591061455,6.0643,164.9,164.81,20.0]
[1729591061635,6.0639,164.91,164.81,20.0]
[1729591062659,6.0635,164.92,164.83,20.0]
[1729591065654,6.0639,164.91,164.83,20.0]
[1729591066260,43.776884,164.92,164.78,6.0969]
[1729591066458,6.0656,164.87,164.79,23.776884]
[1729591066634,6.065,164.88,164.79,23.776884]
[1729591067563,6.065,164.88,164.8,20.0]
[1729591067954,6.065,164.88,164.79,20.0]
[1729591068138,43.776884,164.92,164.79,20.0]
[1729591068339,6.0653,164.87,164.79,20.0]
[1729591068960,6.0657,164.86,164.79,20.0]
[1729591069258,6.0657,164.86,164.77,20.0]
[1729591070338,6.0657,164.86,164.79,20.0]
[1729591071036,43.776884,164.9,164.79,20.0]
[1729591071263,43.776884,164.9,164.76,14.24726664]
[1729591071447,6.0659,164.86,164.77,23.776884]
[1729591071765,6.0661,164.85,164.78,20.0]
[1729591072546,35.9674,164.84,164.69,22.0289]
[1729591072863,6.0679,164.8,164.69,22.0289]
[1729591073244,26.0673,164.82,164.69,22.0289]
[1729591073441,26.0673,164.82,164.7,14.24726664]
[1729591074154,6.0673,164.82,164.71,43.776884]
[1729591075346,20.0,164.82,164.73,43.776884]
[1729591075760,6.0672,164.82,164.73,43.776884]
[1729591088385,6.0672,164.82,164.73,52.84186605]
[1729591089958,12.56197713,164.87,164.73,52.84186605]
[1729591089959,12.56197713,164.87,164.8,9.06498205]
[1729591090165,6.2255,164.87,164.8,9.06498205]
[1729591090482,6.0653,164.88,164.8,9.06498205]
[1729591090870,6.0655,164.87,164.8,9.06498205]
[1729591091272,16.5206,164.89,164.82,9.06498205]
[1729591091581,12.2064,164.91,164.84,9.06498205]
[1729591091757,6.0635,164.92,164.84,9.06498205]
[1729591092382,6.0635,164.92,164.84,23.776884]
[1729591093083,22.1667,164.93,164.84,23.776884]
[1729591093467,6.0637,164.92,164.84,23.776884]
[1729591097468,6.0626,164.95,164.85,20.0]
[1729591097672,6.0638,164.92,164.84,46.694584]
[1729591098577,6.0641,164.91,164.84,22.9177]
[1729591098779,20.0,164.94,164.82,43.776884]
[1729591099167,6.0642,164.91,164.82,43.776884]
[1729591099572,20.0,164.94,164.81,23.776884]
[1729591099869,6.0651,164.88,164.81,23.776884]
[1729591100078,6.0646,164.89,164.81,23.776884]
[1729591100272,6.0643,164.9,164.81,23.776884]
[1729591101065,20.0,164.93,164.82,20.0]
[1729591101265,20.0,164.93,164.83,23.776884]
[1729591101486,26.0632,164.93,164.84,20.0]
[1729591101682,20.0,164.93,164.84,20.0]
[1729591101893,6.0637,164.92,164.84,20.0]
[1729591111599,6.0617,164.97,164.89,23.776884]
[1729591111894,6.0617,164.97,164.9,20.0]
[1729591112496,6.0613,164.98,164.9,20.0]
[1729591113284,6.3318216,165.04,164.95,23.776884]
[1729591113581,6.0588,165.05,164.96,20.0]
[1729591113974,6.3286852,165.09,164.96,23.776884]
[1729591114171,6.0585,165.06,164.96,23.776884]
[1729591114488,6.0585,165.06,164.97,9.03897026]
[1729591115995,20.0,165.09,164.98,23.776884]
[1729591116197,26.0575,165.09,164.99,9.03897026]
[1729591116397,26.0575,165.09,164.98,23.776884]
[1729591116596,6.0591,165.05,164.92,20.0]
[1729591117313,21.6724,165.08,164.92,20.0]
[1729591117605,6.0591,165.04,164.92,20.0]
[1729591117904,6.0591,165.04,164.94,20.0]
[1729591118081,6.0591,165.04,164.95,23.776884]
[1729591118887,20.0,165.05,164.95,23.776884]
[1729591119081,0.2,165.05,164.91,21.6217]
[1729591119285,15.1478,165.04,164.91,21.6217]
[1729591119501,6.0607,165.0,164.91,21.6217]
[1729591120000,20.1,165.05,164.91,21.6217]
[1729591120001,6.0602,165.02,164.91,21.6217]
[1729591120390,6.0602,165.02,164.92,23.776884]
[1729591122204,20.0,165.05,164.92,23.776884]
[1729591122205,6.0606,165.0,164.92,23.776884]
[1729591122593,6.0601,165.02,164.92,23.776884]
[1729591123104,23.776884,165.04,164.92,23.776884]
[1729591123308,6.0605,165.01,164.92,23.776884]
[1729591124381,6.0605,165.01,164.91,21.6217]
[1729591124609,6.0598,165.02,164.92,20.0]
[1729591125421,6.0585,165.06,164.95,23.776884]
[1729591125580,27.7301,165.08,164.95,37.89647565]
[1729591125787,27.7301,165.08,164.97,14.11959165]
[1729591125980,27.7301,165.08,164.98,20.0]
[1729591127513,15.7536831,165.11,164.98,20.0]
[1729591127514,0.6113831,165.11,165.08,43.776884]
[1729591127818,0.6113831,165.11,165.1,23.776884]
[1729591128313,0.6113831,165.11,165.1,43.776884]
[1729591129289,6.0523,165.23,165.12,23.776884]
[1729591129490,6.0526,165.22,165.12,23.776884]
[1729591129808,6.0526,165.22,165.11,20.0]
[1729591129991,6.053,165.21,165.11,20.0]
[1729591130498,6.0524,165.23,165.13,20.0]
[1729591130892,0.2,165.27,165.11,14.11959165]
[1729591131095,22.8058,165.26,165.11,20.0]
[1729591131297,6.0531,165.21,165.11,20.0]
[1729591132607,42.5541,165.17,165.05,21.8303]
[1729591132782,42.5541,165.17,165.05,6.3252]
[1729591132988,42.5541,165.17,165.01,20.67169165]
[1729591133308,6.0553,165.15,165.01,20.67169165]
[1729591134088,6.0553,165.15,165.02,20.0]
[1729591134289,6.0559,165.13,165.02,20.0]
[1729591134604,6.0562,165.12,165.02,20.0]
[1729591134903,6.0558,165.14,165.02,20.0]
[1729591135087,6.0555,165.14,165.02,20.0]
[1729591135906,22.5541,165.17,165.06,20.0]
[1729591136101,22.5541,165.17,165.08,20.0]
[1729591136310,15.9002,165.17,165.08,20.0]
[1729591137014,6.0537,165.19,165.08,20.0]
[1729591137389,21.1906,165.21,165.08,20.0]
[1729591137718,6.0543,165.18,165.08,20.0]
[1729591139418,26.0536,165.2,165.09,37.89647565]
[1729591139919,20.0,165.2,165.09,37.89647565]
[1729591140093,27.2435,165.21,165.1,20.0]
[1729591140298,21.1906,165.21,165.11,23.776884]
[1729591140510,15.1845,165.21,165.11,23.776884]
[1729591140909,6.1624,165.25,165.14,14.11959165]
[1729591141218,15.4911,165.26,165.15,43.776884]
[1729591141515,0.6113831,165.28,165.17,43.776884]
[1729591142095,6.6617831,165.28,165.17,43.776884]
[1729591143195,6.6617831,165.28,165.13,1.3104089]
[1729591143196,6.0517,165.25,165.14,14.11959165]
[1729591143408,6.0517,165.25,165.16,20.0]
[1729591143801,0.6113831,165.28,165.16,21.3105767]
[1729591144003,6.6617831,165.28,165.19,23.776884]
[1729591144324,0.6113831,165.28,165.19,23.776884]
[1729591144805,0.6113831,165.28,165.2,14.11959165]
[1729591146312,0.6113831,165.28,165.19,23.776884]
[1729591147197,0.6113831,165.28,165.15,22.52881213]
[1729591147198,6.0515,165.25,165.15,22.52881213]
[1729591147397,0.6113831,165.28,165.16,20.0]
[1729591147598,6.0518,165.24,165.15,20.0]
[1729591147818,21.6609,165.27,165.15,20.0]
[1729591148015,6.0521,165.24,165.15,20.0]
[1729591148722,21.6609,165.27,165.15,20.0]
[1729591149237,6.0514,165.25,165.15,20.0]
[1729591149431,21.6609,165.27,165.15,20.0]
[1729591149732,6.0518,165.24,165.15,20.0]
[1729591150411,0.6113831,165.28,165.16,23.776884]
[1729591150616,6.0507,165.27,165.19,20.0]
[1729591150927,6.0518,165.24,165.15,23.776884]
[1729591151310,6.0516,165.25,165.15,23.776884]
[1729591152119,6.0516,165.25,165.16,20.0]
[1729591152429,0.6113831,165.28,165.18,20.0]
[1729591153518,6.0507,165.27,165.18,20.0]
[1729591153921,0.6113831,165.28,165.18,20.0]
[1729591154133,6.0507,165.27,165.18,20.0]
[1729591158142,0.6113831,165.28,165.18,20.0]
[1729591158437,0.6113831,165.28,165.19,23.776884]
[1729591159109,0.6113831,165.28,165.2,20.0]
[1729591160437,6.0507,165.27,165.2,20.0]
[1729591160640,6.6616831,165.28,165.2,20.0]
[1729591161934,6.0511,165.26,165.15,43.776884]
[1729591162413,0.6113831,165.28,165.18,20.0]
[1729591162621,6.6619831,165.28,165.2,23.776884]
[1729591162814,0.6113831,165.28,165.2,23.776884]
[1729591163014,0.6113831,165.28,165.22,23.776884]
[1729591163230,0.6113831,165.28,165.24,23.776884]
[1729591165949,15.9796,165.41,165.27,46.30569613]
[1729591166236,6.0465,165.39,165.27,46.30569613]
[1729591166441,6.0466,165.39,165.27,46.30569613]
[1729591166615,6.0467,165.38,165.27,46.30569613]
[1729591170242,6.0467,165.38,165.27,23.776884]
[1729591170443,6.0467,165.38,165.27,37.84461655]
[1729591171633,15.9796,165.41,165.27,37.84461655]
[1729591171844,6.047,165.37,165.27,37.84461655]
[1729591172448,6.0465,165.39,165.27,37.84461655]
[1729591172640,6.0467,165.38,165.27,37.84461655]
[1729591173029,15.9796,165.41,165.27,37.84461655]
[1729591173359,6.0471,165.37,165.27,37.84461655]
[1729591175937,6.0475,165.36,165.27,23.776884]
[1729591176260,6.0487,165.33,165.25,6.0553]
[1729591176439,20.1,165.4,165.22,16.099]
[1729591176440,6.0494,165.31,165.22,16.099]
[1729591176835,0.1,165.37,165.22,16.099]
[1729591177042,20.0,165.34,165.21,6.1125]
[1729591177247,6.0499,165.3,165.21,6.1125]
[1729591177554,20.0,165.34,165.21,6.1125]
[1729591177749,6.0492,165.31,165.21,6.1125]
[1729591178865,6.0492,165.31,165.22,23.776884]
[1729591179069,20.0,165.34,165.21,6.1125]
[1729591179245,6.0498,165.3,165.21,6.1125]
[1729591181169,15.6908,165.29,165.18,15.2095]
[1729591181349,15.6908,165.29,165.14,15.5051]
[1729591181350,26.1221,165.28,165.14,15.5051]
[1729591182068,6.0527,165.22,165.13,6.5682]
[1729591182584,6.0533,165.2,165.13,6.5682]
[1729591182786,6.0533,165.2,165.1,30.51423255]
[1729591183143,15.1276,165.26,165.1,30.51423255]